Cogmind - Beta 12 @@@ ROGUE MODE // 2023.03.06 @ 03:08:14 Player: Delta Epsilon Result: Destroyed by H-66 Slayer with Gauss Rifle Performance ------------- Evolutions (5) 2500 Regions Visited (27) 5400 Robots Destroyed (452) 2260 Value Destroyed (20758) 20758 Prototype IDs (59) 1180 Alien Tech Used (0) 0 Bonus (11310) 11310 TOTAL SCORE: 43408 Bonus ------- Triggered High Security 500 High Alert Combat Kills 6492 Follower Combat Kills 1878 Entered Garrisons 1000 Used RIF Installer 3000 Aligned with FarCom 300 Met Data Miner 300 Friendly Fire -2160 Cogmind --------- Core Integrity 0/1000 Matter 113/300 Energy 83/100 System Corruption 77% Temperature Cool (0) Movement Core (50) Location -5/Factory Parts ------- > --- POWER (1) -------- (None) > --- PROPULSION (6) --- Combat Airjet Combat Airjet Combat Airjet Combat Airjet > --- UTILITY (8) ------ Propulsion Shielding Relay Coupler [Sentry] (12) > --- WEAPON (2) ------- (None) > --- INVENTORY (5) ---- Energy Well (350) Energy Well (350) Long-range Sensor Array Relay Coupler [NC] (35) Relay Coupler [Proto] (9) Peak State ------------ > --- POWER ------------ Reinforced Antimatter Reactor > --- PROPULSION ------- Heavy Treads Armored Heavy Treads Armored Heavy Treads > --- UTILITY ---------- Advanced Cooling System Huge Storage Unit Medium Reflective Plating Medium Insulated Plating Advanced Shield Generator Relay Coupler [Swarmer] Relay Coupler [Grunt] Relay Coupler [Sentry] > --- WEAPON ----------- Plasma Rifle Nova Cannon > --- INVENTORY -------- Reinforced Antimatter Reactor Heavy Treads Armored Heavy Treads Advanced Cooling System Energy Well Advanced Sensor Array Long-range Sensor Array Advanced Transmission Jammer Relay Coupler [NC] Relay Coupler [NC] Relay Coupler [Sentry] Relay Coupler [Demolisher] Relay Coupler [Hunter] Relay Coupler [Heavy] Plasma Rifle Thermic Laser Matter Neutralizer Gauss Cannon Heavy Missile Launcher Rocket Array Remote Datajack Plasma Cutter [Rating: 107] Favorites ----------- Power Reinforced Antimatter Reactor Engine Improved Ion Engine Power Core Enhanced Nuclear Core Reactor Reinforced Antimatter Reactor Propulsion Light Treads Treads Light Treads Leg Aluminum Leg Wheel Wheel Hover Unit Combat Airjet Utility Huge Storage Unit Device Cooling System Storage Huge Storage Unit Processor Improved Targeting Computer Hackware Relay Coupler [Sentry] Protection Medium Armor Plating Weapon Plasma Cannon Energy Gun Thermic Laser Energy Cannon Plasma Cannon Ballistic Gun Light Assault Rifle Ballistic Cannon Gauss Cannon Launcher Improved Grenade Launcher Special Weapon Remote Datajack Impact Weapon Maul Build | -11 -10 -10 -9 -9 -9 -8 -8 -8 -8 -7 -7 -7 -7 -7 -7 -6 -6 -6 -6 -6 -6 -6 -5 -5 -5 -5 -5 ------- Run | Jun Mat Min Mat Min Exi Min Mat Gar Mat Fac Gar Fac Low Low Dat Pro Fac Was Fac Gar Fac Gar Fac Was Fac Gar Fac Slots Evolved 10 | . . . 2 . . . 2 . . 2 . . . . . . 2 . . . . . 2 . . . . Power . | . . . . . . . . . . . . . . . . . . . . . . . . . . . . Propulsion 4 | . . . 1 . . . 1 . . 1 . . . . . . . . . . . . 1 . . . . Utility 6 | . . . 1 . . . 1 . . 1 . . . . . . 2 . . . . . 1 . . . . Weapon . | . . . . . . . . . . . . . . . . . . . . . . . . . . . . Parts Attached 704 | 6 16 5 37 9 7 5 61 51 33 27 45 18 11 1 3 10 41 17 5 56 . 33 36 9 7 48 107 Power 39 | 1 2 . 4 . 1 1 6 4 3 1 3 1 . . 1 . 2 1 1 1 . 1 1 . . . 4 Engine 18 | 1 2 . 4 . 1 . 4 1 3 . 1 . . . . . 1 . . . . . . . . . . Core 13 | . . . . . . 1 2 3 . 1 1 1 . . 1 . 1 . . . . . . . . . 2 Reactor 8 | . . . . . . . . . . . 1 . . . . . . 1 1 1 . 1 1 . . . 2 Propulsion 117 | 2 6 1 9 1 . . 20 13 6 6 5 1 . . . . 7 5 . 4 . 5 3 2 . 5 16 Treads 91 | 2 6 1 9 1 . . 18 9 . 6 5 1 . . . . 3 5 . 4 . 4 3 2 . 5 7 Leg 18 | . . . . . . . 2 4 6 . . . . . . . . . . . . 1 . . . . 5 Wheel 4 | . . . . . . . . . . . . . . . . . 4 . . . . . . . . . . Hover 4 | . . . . . . . . . . . . . . . . . . . . . . . . . . . 4 Flight . | . . . . . . . . . . . . . . . . . . . . . . . . . . . . Utility 203 | 1 4 1 6 3 2 2 15 12 12 4 19 4 5 . . 8 16 5 . 18 . 9 11 . 3 12 31 Device 85 | . 1 . 2 1 1 1 7 6 4 . 9 . 3 . . 8 14 5 . 8 . 2 6 . . 1 6 Storage 10 | 1 2 . . . . . 1 1 . 1 . . . . . . . . . 2 . . . . . 1 1 Processor 5 | . . . . . . . 1 1 . 1 . . . . . . . . . . . . . . 1 . 1 Hackware 33 | . . . . . . . . . 1 1 3 4 1 . . . 1 . . 7 . 2 2 . . 5 6 Protection 70 | . 1 1 4 2 1 1 6 4 7 1 7 . 1 . . . 1 . . 1 . 5 3 . 2 5 17 Artifact . | . . . . . . . . . . . . . . . . . . . . . . . . . . . . Weapon 345 | 2 4 3 18 5 4 2 20 22 12 16 18 12 6 1 2 2 16 6 4 33 . 18 21 7 4 31 56 Energy Gun 72 | 1 1 . 7 1 1 1 1 . . . . . . . . . 8 5 2 16 . 10 9 . 3 5 1 Energy Cannon 127 | . . . 4 2 3 . 9 13 8 11 9 6 2 1 2 1 5 . 1 6 . 5 5 3 1 12 18 Ballistic Gun 26 | 1 3 2 2 . . . 3 . . . . . . . . . 1 . . 1 . . . . . . 13 Ballistic Cannon 4 | . . . . . . . 3 . . . . . . . . . . . . . . . 1 . . . . Launcher 50 | . . . 5 2 . 1 3 9 3 3 1 2 1 . . 1 . . . 1 . . 4 1 . 6 7 Special Weapon 61 | . . . . . . . . . . 2 7 4 3 . . . 2 1 1 8 . 3 2 3 . 8 17 Impact Weapon 5 | . . 1 . . . . 1 . 1 . 1 . . . . . . . . 1 . . . . . . . Slashing Weapon . | . . . . . . . . . . . . . . . . . . . . . . . . . . . . Piercing Weapon . | . . . . . . . . . . . . . . . . . . . . . . . . . . . . Special Melee Weapon . | . . . . . . . . . . . . . . . . . . . . . . . . . . . . Unidentified Prototypes 15 | . 1 . 1 . . . 3 . 1 . 1 2 . . . . 2 . . . . 1 2 . . . 1 Parts Lost 105 | . 2 2 9 2 . . 8 15 6 2 5 . . . . 1 . . . 1 . 6 7 . . 2 37 Power 10 | . . . 2 . . . . 2 1 1 1 . . . . . . . . . . . . . . . 3 Propulsion 36 | . 1 . 3 . . . 5 7 3 . . . . . . 1 . . . . . 1 3 . . 1 11 Utility 45 | . . 1 3 1 . . 3 4 2 . 4 . . . . . . . . 1 . 4 4 . . . 18 Weapon 14 | . 1 1 1 1 . . . 2 . 1 . . . . . . . . . . . 1 . . . 1 5 Highest Loss Streak 13 | . 1 2 5 1 . . 3 5 4 2 2 . . . . 1 . . . 1 . 1 4 . . 1 13 To Critical Strikes 1 | . . . . . . . . . . . . . . . . . . . . . . . . . . . 1 Average Slot Usage (%) 87 | . 98 100 98 99 97 100 96 93 95 98 88 83 84 84 70 78 83 81 80 79 80 78 79 71 80 81 76 Engine 3 | . 14 14 10 11 11 10 6 2 7 2 . . . . . . 1 2 . . . . . . . . . Core 2 | . . . . . . . 2 6 . 4 3 6 7 7 7 7 4 . . . . . . . . . . Reactor 1 | . . . . . . . . . . . 2 . . . . . . 3 6 6 6 6 5 5 5 5 4 Treads 22 | . 28 28 32 33 33 33 32 23 . 36 30 22 23 23 23 17 13 20 20 19 20 18 16 12 17 17 14 Leg 2 | . . . . . . . . 7 33 1 . . . . . . . . . . . . . . . . 5 Device 10 | . 12 . 10 11 11 11 9 15 13 15 9 7 6 7 7 11 13 13 13 12 13 7 9 11 11 11 5 Storage 7 | . 14 14 11 11 11 11 9 9 9 7 7 7 7 7 7 7 6 6 6 6 6 6 5 5 5 5 4 Hackware 9 | . . . . . . . . . . 6 5 14 15 15 15 15 13 13 13 13 13 19 21 23 23 18 17 Protection 7 | . . 14 11 10 10 10 8 8 13 6 10 7 7 7 7 2 6 6 6 6 6 5 5 . 3 8 8 Energy Gun 3 | . 11 . 9 4 9 10 . . . . . . . . . . 3 12 12 9 6 11 9 . 8 . . Energy Cannon 8 | . . . 9 17 9 11 14 16 16 14 14 14 12 14 1 15 9 . . 1 6 1 1 3 2 7 3 Ballistic Gun 2 | . 16 19 2 . . . 1 . . . . . . . . . . . . . . . . . . . 5 Naked Turns . | . . . . . . . . . . . . . . . . . . . . . . . . . . . . Heaviest Build 153 | 11 58 60 64 62 74 62 107 117 82 121 132 121 117 117 117 117 137 138 144 149 149 149 144 131 139 153 141 Greatest Support 210 | 40 40 40 60 60 60 60 80 80 57 124 178 178 170 150 150 150 95 175 140 175 150 150 190 210 210 210 191 Greatest Overweight (x) 44 | . 1 1 1 1 1 1 3 7 3 2 1 . . . . 1 13 4 1 1 . 1 . 1 . 1 44 Average Overweight (x) . | . . 1 . . . . . 1 1 . . . . . . . 3 . . . . . . . . . . Largest Inventory Capacity 25 | 8 20 20 20 20 20 20 25 25 20 25 25 25 25 25 25 25 25 25 25 25 25 25 25 25 25 25 25 Average Capacity 23 | 6 17 20 20 20 20 20 23 21 20 24 25 25 25 25 25 25 25 25 25 25 25 25 25 25 25 25 23 Most Carried 25 | 2 19 20 20 20 20 19 25 25 20 23 25 25 25 25 25 25 25 25 25 25 25 25 25 24 25 25 25 Average Carried 21 | . 9 19 18 18 18 18 21 21 18 20 24 24 24 25 24 24 24 24 25 24 25 24 23 21 24 24 22 Final Capacity 25 | 8 20 20 20 20 20 20 25 20 20 25 25 25 25 25 25 25 25 25 25 25 25 25 25 25 25 25 5 Final Carried 25 | 2 18 18 19 18 18 19 25 20 20 23 25 25 25 25 24 25 25 25 25 25 25 25 20 24 21 25 5 Class Distribution -------------------- 35% | Bothacker-Mutant 24% | Mutant 24% | Botlord-Mutant 15% | Scavenger-Mutant Dominant Class ---------------- Mutant | -10/Materials Mutant | -10/Mines Scavenger-Mutant | -9/Materials Mutant | -9/Mines Mutant | -9/Exiles Mutant | -8/Mines Mutant | -8/Materials Scavenger-Mutant | -8/Garrison Scavenger-Mutant | -8/Materials Bothacker-Mutant | -7/Factory Bothacker-Mutant | -7/Garrison Bothacker-Mutant | -7/Factory Bothacker-Mutant | -7/Lower Caves Bothacker-Mutant | -7/Lower Caves Bothacker-Mutant | -7/Data Miner Bothacker-Mutant | -6/Proximity Caves Bothacker-Mutant | -6/Factory Bothacker-Mutant | -6/Waste Bothacker-Mutant | -6/Factory Bothacker-Mutant | -6/Garrison Botlord-Mutant | -6/Factory Botlord-Mutant | -6/Garrison Botlord-Mutant | -5/Factory Botlord-Mutant | -5/Waste Botlord-Mutant | -5/Factory Botlord-Mutant | -5/Garrison Botlord-Mutant | -5/Factory Resources | -11 -10 -10 -9 -9 -9 -8 -8 -8 -8 -7 -7 -7 -7 -7 -7 -6 -6 -6 -6 -6 -6 -6 -5 -5 -5 -5 -5 ----------- Run | Jun Mat Min Mat Min Exi Min Mat Gar Mat Fac Gar Fac Low Low Dat Pro Fac Was Fac Gar Fac Gar Fac Was Fac Gar Fac Matter Collected 11401 | 181 337 321 510 110 . . 1229 784 754 339 564 151 298 . . 205 448 206 . 793 . 402 366 248 132 857 2166 Remotely . | . . . . . . . . . . . . . . . . . . . . . . . . . . . . Salvage Created 19401 | . 648 414 1363 257 . . 1425 1077 1031 360 1541 471 337 . . 458 539 350 . 988 . 1128 1260 587 338 1296 3533 Parts 886 | . 44 21 87 15 . . 68 60 47 23 73 30 23 . . 22 18 7 . 49 . 25 45 6 8 63 152 Haulers Intercepted 12 | . 2 . 3 . . . 5 . 1 . . . . . . . . . . . . . . . . . 1 Recyclers Shooed 14 | . . . 1 . . . 2 . . . . 1 . . . . 2 . . . . . . . . . 8 Parts Field Recycled . | . . . . . . . . . . . . . . . . . . . . . . . . . . . . Retrieved Matter . | . . . . . . . . . . . . . . . . . . . . . . . . . . . . Parts Self-Destructed 39 | . . . . . . . . . . . . . 16 . . 23 . . . . . . . . . . . Prevented 1 | . . . . . . . . . . . . . 1 . . . . . . . . . . . . . . Kills | -11 -10 -10 -9 -9 -9 -8 -8 -8 -8 -7 -7 -7 -7 -7 -7 -6 -6 -6 -6 -6 -6 -6 -5 -5 -5 -5 -5 ------- Run | Jun Mat Min Mat Min Exi Min Mat Gar Mat Fac Gar Fac Low Low Dat Pro Fac Was Fac Gar Fac Gar Fac Was Fac Gar Fac Combat Hostiles Destroyed 361 | . 12 8 30 13 . . 17 36 25 14 20 7 6 . . 9 6 . . 18 . 24 28 2 5 35 46 Melee 5 | . . 2 . . . . 2 . . . . . . . . . . . . . . . . . . . 1 Guns 114 | . 11 6 14 2 . . 3 . . . . . . . . . . . . 13 . 20 21 . 4 3 17 Cannons 125 | . . . 4 7 . . 9 20 16 5 16 6 4 . . 4 3 . . . . 1 2 . . 11 17 AOE 90 | . . . 10 4 . . 2 16 8 8 4 1 . . . 2 . . . . . . 4 . . 20 11 Classes Destroyed 24 | . 5 3 4 . . . 2 1 1 1 1 . 2 . . . . . . 1 . 1 . 1 . . 1 Worker 19 | . . 3 2 . . . . . . . . 2 . . . . 3 . . . . . 1 . 1 . 7 Builder 12 | . . 1 2 . . . 1 . . . . 2 . . . . . . . . . . 2 . . . 4 Tunneler 3 | . . 1 1 . . . . . . . . 1 . . . . . . . . . . . . . . . Hauler 12 | . 2 . 3 . . . 5 . 1 . . . . . . . . . . . . . . . . . 1 Recycler 17 | . 1 . 2 1 . . 4 . . . . 1 . . . . 1 . . . . . 1 . . . 6 Mechanic 2 | . . . . . . . . . . 1 . . . . . . . . . . . . . . . . 1 Operator 2 | . . . . . . . . . 1 . . . . . . . . . . . . . . . 1 . . Watcher 16 | . 3 . 4 . . . 5 . . . . 3 . . . . . . . . . . . . . . 1 Swarmer 94 | . 3 3 7 11 . . . 14 . 7 4 . 2 . . 1 . . . 6 . 10 11 . . 11 4 Cutter 8 | . . . . . . . . . . . . . . . . . . . . 2 . . . . . 6 . Saboteur 1 | . . . . . . . . . . . . . . . . . . . . . . . . . . . 1 Grunt 137 | . 9 5 12 2 . . 7 15 17 3 3 1 1 . . 4 1 . . 3 . 10 7 . 3 15 19 Brawler 9 | . . . 2 . . . . . 1 . 2 . . . . . . . . . . 1 1 . . . 2 Duelist 11 | . . . 1 . . . 1 . 1 1 . 1 . . . . . . . . . . . . . 2 4 Protector 3 | . . . 1 . . . . . . . . . . . . . . . . . . . 1 . . . 1 Sentry 38 | . . . 7 . . . 5 3 3 1 6 1 . . . 1 3 . . 3 . 1 1 . . 1 2 Specialist 3 | . . . . . . . . . . . 1 . . . . . . . . 1 . . . . . . 1 Hunter 19 | . . . . . . . 3 3 3 . . . 2 . . 3 . . . . . 1 1 . . . 3 Programmer 37 | . . . . . . . . 1 . 2 4 4 . . . . 2 . . 3 . . 6 . 2 3 10 Heavy 1 | . . . . . . . 1 . . . . . . . . . . . . . . . . . . . . Behemoth 1 | . . . . . . . . . . . . . 1 . . . . . . . . . . . . . . Compactor 2 | . . . . . . . . . . . . . . . . . . . . . . . . 2 . . . Executioner 1 | . . . . . . . . . . . . . . . . . . . . . . 1 . . . . . Thug 3 | . . 1 . . . . . . . . 1 . . . . . . . . 1 . . . . . . . Mutant 1 | . . . . . . . . . . . . . 1 . . . . . . . . . . . . . . Best Kill Streak 15 | . 2 6 11 9 . . 3 6 6 9 5 6 3 . . 3 1 . . 4 . 4 6 1 2 9 15 Combat Bots Only 9 | . 2 6 7 8 . . 3 6 6 8 5 2 3 . . 3 1 . . 4 . 4 6 1 2 9 5 Max Kills in Single Turn 6 | . 1 1 3 3 . . 2 3 2 3 4 6 1 . . 2 1 . . 1 . 2 3 1 1 5 6 Gunslinging 1 | . . . 1 . . . . . . . . . . . . . . . . . . 1 1 . . . 1 Exploded 5 | . . . 2 3 . . 2 3 2 3 4 1 . . . 2 . . . . . . 2 . . 5 2 Melee 1 | . . 1 . . . . 1 . . . . . . . . . . . . . . . . . . . 1 Uniques/NPCs Destroyed . | . . . . . . . . . . . . . . . . . . . . . . . . . . . . Combat | -11 -10 -10 -9 -9 -9 -8 -8 -8 -8 -7 -7 -7 -7 -7 -7 -6 -6 -6 -6 -6 -6 -6 -5 -5 -5 -5 -5 -------- Run | Jun Mat Min Mat Min Exi Min Mat Gar Mat Fac Gar Fac Low Low Dat Pro Fac Was Fac Gar Fac Gar Fac Was Fac Gar Fac Damage Taken 27652 | . 708 627 1766 383 . . 2000 2515 1347 652 1578 201 364 60 . 557 553 . . 1326 . 2470 2197 . 267 1677 6404 Core 2496 | . 105 114 173 39 . . 115 139 213 74 112 14 . . . 37 47 . . 66 . 233 124 . 14 27 850 Absorbed by Shields 2994 | . . . . . . . . 24 93 149 62 . . . . 12 303 . . 554 . 172 568 . 97 495 465 Reduced by Siege Mode 953 | . . . . . . . . . . . 121 12 . . . 14 . . . 69 . 172 236 . 24 112 193 Redirected to Shielding 19 | . . . . . . . . . . . . . . . . . . . . . . . . . . . 19 Regen/Repaired (Parts) 1637 | . 155 . . . . . 206 . . 131 . . . . . . . 556 . . . . . . . . 589 Core Remaining (%) 49 | 100 . 12 . . . 47 . . 15 . . . . . . 66 . . . . . 59 . . . . . Volleys Fired 1511 | . 73 33 94 22 . 3 106 119 60 38 101 43 34 . . 40 75 21 3 124 1 98 81 12 25 106 199 Largest 2 | . 2 2 2 2 . 2 2 2 2 2 2 2 2 . . 2 2 2 1 2 2 2 2 2 2 2 2 Hottest 218 | . 100 40 126 125 . 125 160 160 160 130 130 170 203 . . 203 203 170 105 198 198 170 210 210 150 218 218 Shots Fired 2501 | . 145 65 184 42 . 4 193 194 106 50 175 58 47 . . 54 117 27 3 194 3 171 147 15 44 145 318 Gun 1028 | . 145 65 126 6 . 1 30 . . . . . . . . . 37 11 . 134 2 147 118 . 36 12 158 Cannon 1185 | . . . 44 34 . 1 157 165 92 41 150 49 30 . . 53 78 . 2 28 1 14 22 6 8 94 116 Launcher 104 | . . . 14 2 . 2 6 29 14 7 1 . . . . 1 . . . 1 . . 5 . . 11 11 Special 184 | . . . . . . . . . . 2 24 9 17 . . . 2 16 1 31 . 10 2 9 . 28 33 Kinetic 407 | . 92 65 38 . . . 56 . . . . . . . . . . . . . . . . . . . 156 Thermal 1891 | . 53 . 132 40 . 2 131 165 92 41 163 49 45 . . 53 115 27 2 177 3 169 140 6 44 116 126 Explosive 95 | . . . 14 2 . 2 6 29 14 7 1 . . . . 1 . . . 1 . . 5 . . 7 6 Electromagnetic 9 | . . . . . . . . . . . . . . . . . . . . . . . . . . 4 5 Robot Hit Streak 43 | . 7 13 16 8 . . 16 11 24 9 43 15 14 . . 7 15 18 19 28 . 26 17 10 12 12 18 Robot Miss Streak 6 | . 4 4 3 5 . . 4 2 2 1 3 2 3 . . 3 5 1 . 4 . 4 5 2 2 3 6 Penetration Max 2 | . . . . . . . . . . . . . . . . . . . . . . . . . . . 2 Secondary Targets 17 | . . 2 2 . . . 1 . . . . . . . . . . . . . . 5 4 . . 1 2 Max Gunslinging Chain 1 | . . 1 1 . . . 1 . . . . . . . . . . . . . . 1 1 . . 1 1 Shots Hit Robots 1537 | . 91 55 131 31 . . 104 81 67 18 134 24 29 . . 18 47 25 1 108 . 121 100 11 30 81 230 Core Hits 896 | . 33 20 68 19 . . 46 58 49 25 46 14 12 . . 16 15 4 . 33 . 48 83 1 15 89 202 Critical Kills 27 | . . . . . . . . . 1 . . . 2 . . 3 1 . . . . . . 2 . 1 17 Critical Parts Destroyed 31 | . . . . . . . 1 . . . . . . . . . . . . . . . . . . . 30 Critical Strikes 127 | . 4 . 11 . . . 1 . 1 . . . 2 . . 3 3 2 . 13 . 21 10 2 3 3 48 Burn 68 | . 4 . 11 . . . . . . . . . . . . . 2 2 . 13 . 21 10 . 3 2 . Meltdown 10 | . . . . . . . . . 1 . . . 2 . . 3 1 . . . . . . 2 . 1 . Destroy 48 | . . . . . . . . . . . . . . . . . . . . . . . . . . . 48 Smash 1 | . . . . . . . 1 . . . . . . . . . . . . . . . . . . . . Melee Attacks 21 | . . 13 . . . . 6 . . . 1 . . . . . . . . 1 . . . . . . . Impact 21 | . . 13 . . . . 6 . . . 1 . . . . . . . . 1 . . . . . . . Slashing . | . . . . . . . . . . . . . . . . . . . . . . . . . . . . Piercing . | . . . . . . . . . . . . . . . . . . . . . . . . . . . . Sneak Attacks 6 | . . 5 . . . . 1 . . . . . . . . . . . . . . . . . . . . Combat Hostiles . | . . . . . . . . . . . . . . . . . . . . . . . . . . . . Follow-up Attacks . | . . . . . . . . . . . . . . . . . . . . . . . . . . . . Damage Inflicted 45129 | . 932 1156 2956 743 . . 3559 3748 2795 1495 3508 1207 724 . . 755 1300 371 35 1863 . 2261 3329 146 726 3731 7789 Guns 11532 | . 929 467 1288 31 . . 307 . . . . . . . . . 512 198 . 1622 . 2165 1921 . 690 167 1235 Cannons 18194 | . . . 587 424 . . 2549 2107 1588 425 3136 675 615 . . 605 771 . . 72 . . 392 146 36 1595 2471 Explosions 13348 | . . . 1053 288 . . 433 1637 1184 1070 232 468 . . . 150 . . . . . . 1005 . . 1871 3957 Melee 922 | . . 689 . . . . 233 . . . . . . . . . . . . . . . . . . . . Ramming 288 | . 3 . 28 . . . 37 4 23 . . 64 . . . . 17 . 35 . . 9 11 . . . 57 Kinetic 3235 | . 422 467 249 . . . 886 . . . . . . . . . . . . . . . . . . . 1211 Thermal 28529 | . 507 . 1626 455 . . 1970 2107 1588 425 3276 1143 724 . . 605 1283 371 . 1863 . 2252 2313 146 726 1860 3289 Explosive 11219 | . . . 1053 288 . . 433 1637 1184 1070 232 . . . . 150 . . . . . . 977 . . 1623 2572 Electromagnetic 936 | . . . . . . . . . . . . . . . . . . . . . . . 28 . . 248 660 Impact 922 | . . 689 . . . . 233 . . . . . . . . . . . . . . . . . . . . Slashing . | . . . . . . . . . . . . . . . . . . . . . . . . . . . . Piercing . | . . . . . . . . . . . . . . . . . . . . . . . . . . . . Highest Corruption 77 | . . . . . . . 7 7 7 . 4 5 5 5 5 5 4 4 4 4 4 4 5 29 30 33 77 Average Corruption 11 | . . . . . . . 6 7 7 . 2 4 5 5 5 5 3 4 4 4 4 4 2 15 29 30 47 Corruption Purged . | . . . . . . . . . . . . . . . . . . . . . . . . . . . . Corruption Blocked . | . . . . . . . . . . . . . . . . . . . . . . . . . . . . Effects 989 | . . . . . . . 68 113 39 . 37 65 19 6 5 33 52 21 10 49 5 55 23 12 22 155 200 Message Errors 221 | . . . . . . . 10 30 8 . 8 17 7 . 1 11 13 4 2 16 1 15 4 1 3 28 42 Matter Fused 205 | . . . . . . . 14 29 12 . 8 13 2 1 2 7 7 5 2 10 1 12 7 4 9 29 31 Heat Flow Errors 116 | . . . . . . . 14 14 3 . 4 10 2 1 1 4 4 3 1 5 1 5 2 . . 22 20 Energy Discharges 123 | . . . . . . . 11 16 6 . 2 9 3 1 . 2 7 2 1 6 . 9 2 4 1 23 18 Parts Rejected 12 | . . . . . . . . 1 2 . . . . . . . . . 1 . . 1 1 1 . 1 4 Parts Fused 4 | . . . . . . . . . 1 . 1 . . . . 1 . . . . . . . . . . 1 Data Loss (minor) 122 | . . . . . . . 12 9 2 . 5 7 3 2 . 6 7 4 2 6 . 8 2 1 7 20 19 Data Loss (major) 50 | . . . . . . . 1 6 2 . 5 6 . . 1 1 4 2 1 3 1 4 1 1 1 7 3 Misfires 44 | . . . . . . . 2 5 . . 1 2 2 . . 1 6 1 . 3 1 1 2 . 1 10 6 Alerts 24 | . . . . . . . 2 2 1 . 1 1 . 1 . . 2 . . . . . 1 . . 4 9 Misdirections 16 | . . . . . . . . . . . . . . . . . . . . . . . . . . . 16 Weapon Failures 52 | . . . . . . . 2 1 2 . 2 . . . . . 2 . . . . . 1 . . 11 31 Overload Shots . | . . . . . . . . . . . . . . . . . . . . . . . . . . . . Overflow Damage 1315 | . . 220 7 59 . . 136 142 93 26 116 182 . . . 9 55 . . . . . 27 . . 40 203 Projectiles 403 | . . . 5 16 . . 8 64 58 . 76 6 . . . 9 55 . . . . . 27 . . 9 70 Explosions 596 | . . . 2 43 . . 34 78 35 26 40 176 . . . . . . . . . . . . . 31 131 Melee 316 | . . 220 . . . . 94 . . . . . . . . . . . . . . . . . . . 2 Knockbacks 8 | . . 2 . . . . 3 . . . . 2 . . . . . . . . . . . . . . 1 Impact 6 | . . 2 . . . . 1 . . . . 2 . . . . . . . . . . . . . . 1 Kinetic 2 | . . . . . . . 2 . . . . . . . . . . . . . . . . . . . . Secondary . | . . . . . . . . . . . . . . . . . . . . . . . . . . . . Self-Inflicted Damage 1021 | . . . 66 25 . . . 232 54 114 38 . . . . 42 6 . . 8 . . 112 . . 121 203 Shots 43 | . . . 7 1 . . . 10 2 3 1 . . . . 2 . . . 1 . . 5 . . 5 6 Rammed 35 | . 5 . 5 . . . 7 2 . . . 4 . . . . 2 . 1 . . 2 1 . . . 6 Targets Rammed 43 | . 6 . 5 . . . 8 2 5 . . 5 . . . . 2 . 1 . . 2 1 . . . 6 Kicked 5 | . . . . . . . . . 5 . . . . . . . . . . . . . . . . . . Crushed 3 | . 1 . . . . . 1 . . . . 1 . . . . . . . . . . . . . . . Highest Temperature 436 | . 179 29 141 33 . . 284 382 243 24 231 284 324 217 195 324 279 228 74 306 110 436 210 72 24 251 289 Average Temperature 65 | . 50 4 30 8 . . 55 87 63 7 51 62 100 204 102 97 75 108 29 70 35 92 39 34 8 67 64 Received Heat Transfer 6114 | . 315 276 540 75 . . 594 890 652 95 321 . 24 36 . 39 92 . . 173 . 805 237 . 60 244 646 Effects 8 | . . . . . . . 1 2 . . . . . . . . . . . 1 . 4 . . . . . Shutdowns 3 | . . . . . . . . 2 . . . . . . . . . . . . . 1 . . . . . Energy Bleed 2 | . . . . . . . 1 . . . . . . . . . . . . 1 . . . . . . . Interference 3 | . . . . . . . . . . . . . . . . . . . . . . 3 . . . . . Siege Activations 56 | . . . . . . . . . . . 5 6 4 . . 1 . . . 7 . 8 9 . 3 4 9 Total Turns 1093 | . . . . . . . . . . . 88 24 22 . . 36 . . . 130 . 183 181 . 51 103 275 Longest Duration 95 | . . . . . . . . . . . 55 11 13 . . 36 . . . 37 . 39 47 . 27 30 95 Robots Corrupted . | . . . . . . . . . . . . . . . . . . . . . . . . . . . . Combat Hostiles . | . . . . . . . . . . . . . . . . . . . . . . . . . . . . Parts Fried 5 | . . 5 . . . . . . . . . . . . . . . . . . . . . . . . . Impact Corruptions 10 | . . 8 . . . . 1 . . . . . . . . . . . . . . . . . . . 1 Robots Melted 28 | . 1 . 3 . . . 1 . 1 . . . 2 . . 3 4 . . 5 . 3 1 2 1 1 . Combat Hostiles 26 | . 1 . 2 . . . 1 . 1 . . . 2 . . 3 3 . . 5 . 3 1 2 1 1 . Parts Melted 185 | . 3 . 18 2 . . 7 11 4 1 9 3 9 . . 2 19 3 . 18 . 28 22 1 10 7 8 Heat Transferred 53192 | . 1739 . 4292 928 . . 3750 3567 2159 555 4625 1016 1138 . . 707 2357 1342 . 5788 . 6424 4964 148 1787 2335 3571 Parts Sabotaged 7 | . . . . . . . . . . . . . . . . . . . . . . . . . . . 7 Parts Stolen . | . . . . . . . . . . . . . . . . . . . . . . . . . . . . Parts Stripped . | . . . . . . . . . . . . . . . . . . . . . . . . . . . . Power Chain Reactions 1 | . . . . . . . . . . . . . . . . . . . . . . . . . . . 1 Missiles Intercepted . | . . . . . . . . . . . . . . . . . . . . . . . . . . . . Alert | -11 -10 -10 -9 -9 -9 -8 -8 -8 -8 -7 -7 -7 -7 -7 -7 -6 -6 -6 -6 -6 -6 -6 -5 -5 -5 -5 -5 ------- Run | Jun Mat Min Mat Min Exi Min Mat Gar Mat Fac Gar Fac Low Low Dat Pro Fac Was Fac Gar Fac Gar Fac Was Fac Gar Fac Peak Influence 2582 | . 115 251 593 358 . 145 173 2582 1467 686 1514 794 . . . . 306 32 642 2015 1111 1938 1357 458 500 1903 1798 Initial 1258 | . . 3 97 153 . . . 105 1258 667 364 794 . . . . 300 32 . 338 1057 777 1017 424 320 211 998 Average 666 | . 29 70 378 225 . 59 80 1145 1193 604 918 552 . . . . 94 18 219 1213 1078 1270 1170 436 407 952 1226 Maximum Alert Level 5 | . . 1 2 1 . . . 5 4 2 4 3 . . . . 1 . 2 5 4 5 4 2 2 5 5 Low Security (%) 33 | 100 100 87 10 59 . 100 100 16 . . . . . . . . 87 100 59 . . . . . . . . Level 1 7 | . . 12 44 40 . . . 3 . . 1 5 . . . . 12 . 12 1 . . . . 37 26 . Level 2 18 | . . . 45 . . . . 19 . 100 29 83 . . . . . . 27 19 . . . 100 62 2 . Level 3 14 | . . . . . . . . 12 23 . 34 11 . . . . . . . 26 60 31 28 . . 26 45 Level 4 19 | . . . . . . . . 16 76 . 34 . . . . . . . . 26 39 52 71 . . 33 46 Level 5 6 | . . . . . . . . 31 . . . . . . . . . . . 26 . 15 . . . 10 . High Security . | . . . . . . . . . . . . . . . . . . . . . . . . . . . 8 Max Security . | . . . . . . . . . . . . . . . . . . . . . . . . . . . . Squads Dispatched 73 | . 3 . 5 . . . 3 . 8 4 . 4 . . . . 7 . 1 . . . 8 . 2 . 28 Investigation 9 | . 2 . 1 . . . 1 . 2 . . . . . . . 2 . . . . . . . 1 . . Extermination 17 | . . . . . . . . . . 2 . 4 . . . . 3 . . . . . 2 . 1 . 5 Reinforcement 16 | . 1 . 3 . . . 2 . 3 . . . . . . . 2 . . . . . . . . . 5 Assault 29 | . . . 1 . . . . . 3 2 . . . . . . . . . . . . 5 . . . 18 Garrison 2 | . . . . . . . . . . . . . . . . . . . 1 . . . 1 . . . . Intercept . | . . . . . . . . . . . . . . . . . . . . . . . . . . . . Searches Triggered . | . . . . . . . . . . . . . . . . . . . . . . . . . . . . Data Miner Redirects 11 | . . . . . . . . . . . . . . . . . 1 . . . . . 5 . . . 5 Construction Impeded 6 | . . . 1 . . . . . 2 . . . . . . . . . . . . . . . . . 3 Haulers Reinforced 2 | . . . . . . . . . . . . . . . . . . . . . . . . . . . 2 Active Scanning Responses . | . . . . . . . . . . . . . . . . . . . . . . . . . . . . Cargo Convoy Interrupts 1 | . . . . . . . . . . . . . . . . . . . . . . . . . . . 1 Alert ID Control Effect 11 | . . . . . . . . . . . . . . . . . . . . 2 . 3 . . . 3 3 Stealth | -11 -10 -10 -9 -9 -9 -8 -8 -8 -8 -7 -7 -7 -7 -7 -7 -6 -6 -6 -6 -6 -6 -6 -5 -5 -5 -5 -5 --------- Run | Jun Mat Min Mat Min Exi Min Mat Gar Mat Fac Gar Fac Low Low Dat Pro Fac Was Fac Gar Fac Gar Fac Was Fac Gar Fac Distress Signals 11 | . . . 3 . . . 2 . 2 1 . 1 . . . . . . . . . . 1 . . . 1 Communications Jammed . | . . . . . . . . . . . . . . . . . . . . . . . . . . . . Distress Signals . | . . . . . . . . . . . . . . . . . . . . . . . . . . . . Times Spotted 617 | . 24 17 43 15 . . 27 38 49 17 30 16 9 3 . 10 14 . 7 44 . 30 41 6 7 44 126 Peak Tracking Total 13 | . 3 6 7 4 . . 4 6 7 6 7 2 2 3 . 3 4 . 5 10 . 6 6 2 3 7 13 Tactical Retreats 36 | . 2 1 . 1 . . 3 2 5 1 1 . 2 . . . . . . 2 . . 2 . 1 2 11 Traps | -11 -10 -10 -9 -9 -9 -8 -8 -8 -8 -7 -7 -7 -7 -7 -7 -6 -6 -6 -6 -6 -6 -6 -5 -5 -5 -5 -5 ------- Run | Jun Mat Min Mat Min Exi Min Mat Gar Mat Fac Gar Fac Low Low Dat Pro Fac Was Fac Gar Fac Gar Fac Was Fac Gar Fac Traps Triggered 40 | . 2 . 1 . . . 2 7 1 . 3 1 . . . . 5 . . 2 . 8 1 . . 5 2 Indirectly 2 | . . . . . . . . . . . . . . . . . . . . . . . . . . 1 1 Trap Hack Attempts . | . . . . . . . . . . . . . . . . . . . . . . . . . . . . Triggered . | . . . . . . . . . . . . . . . . . . . . . . . . . . . . Disarmed . | . . . . . . . . . . . . . . . . . . . . . . . . . . . . Reprogrammed . | . . . . . . . . . . . . . . . . . . . . . . . . . . . . Reused 2 | . . 1 . . . . . . 1 . . . . . . . . . . . . . . . . . . Traps Extracted . | . . . . . . . . . . . . . . . . . . . . . . . . . . . . Installed 2 | . . 1 . . . . . . 1 . . . . . . . . . . . . . . . . . . Triggered 5 | . . 1 . . . . . . 1 . . . 3 . . . . . . . . . . . . . . Most Traps Carried 1 | . . . . . . . . 1 1 . . . . . . . . . . . . . . . . . . Machines | -11 -10 -10 -9 -9 -9 -8 -8 -8 -8 -7 -7 -7 -7 -7 -7 -6 -6 -6 -6 -6 -6 -6 -5 -5 -5 -5 -5 ---------- Run | Jun Mat Min Mat Min Exi Min Mat Gar Mat Fac Gar Fac Low Low Dat Pro Fac Was Fac Gar Fac Gar Fac Was Fac Gar Fac Machines Disabled 74 | . . . 2 1 . 7 4 10 2 . 7 8 . . . . 1 . 1 8 1 4 4 . . 3 11 Max in Single Turn 7 | . . . 1 1 . 7 1 1 1 . 2 5 . . . . 1 . . 1 . 1 3 . . 1 4 Garrison Access 4 | . . . . . . . . . . 1 . 1 . . . . . . . . . . 2 . . . . Garrison Relay 19 | . . . . . . . . 3 . . 3 . . . . . . . . 7 . 3 . . . 3 . Phase Generator 1 | . . . . . . . . . . . 1 . . . . . . . . . . . . . . . . Machines Repaired . | . . . . . . . . . . . . . . . . . . . . . . . . . . . . Machines Sabotaged . | . . . . . . . . . . . . . . . . . . . . . . . . . . . . Overloaded Fab Kills . | . . . . . . . . . . . . . . . . . . . . . . . . . . . . Hacking | -11 -10 -10 -9 -9 -9 -8 -8 -8 -8 -7 -7 -7 -7 -7 -7 -6 -6 -6 -6 -6 -6 -6 -5 -5 -5 -5 -5 --------- Run | Jun Mat Min Mat Min Exi Min Mat Gar Mat Fac Gar Fac Low Low Dat Pro Fac Was Fac Gar Fac Gar Fac Was Fac Gar Fac Machines Accessed 101 | . 9 . 7 . 2 1 13 4 4 5 3 13 1 . 3 . 11 . 6 1 4 2 4 . 4 4 . Terminals 58 | . 6 . 5 . . 1 7 4 3 1 3 7 . . . . 4 . 4 1 2 2 2 . 2 4 . Fabricators 5 | . . . . . . . . . . . . 2 . . . . 1 . 1 . . . . . 1 . . Repair Stations 10 | . 1 . . . . . 1 . 1 1 . 1 . . . . 4 . . . 1 . . . . . . Recycling Units 9 | . 2 . 2 . . . 2 . . 1 . 1 . . . . . . . . . . 1 . . . . Scanalyzers 5 | . . . . . . . 2 . . . . 1 . . . . 2 . . . . . . . . . . Garrison Access 8 | . . . . . . . 1 . . 2 . 1 . . . . . . 1 . 1 . 1 . 1 . . Total Hacks 245 | . 23 . 15 . 2 1 43 5 11 7 6 25 1 . 24 . 30 . 19 2 5 4 9 . 8 5 . Successful 121 | . 13 . 10 . 2 1 23 2 4 4 1 8 1 . 24 . 8 . 9 . 1 1 5 . 3 1 . Failed 122 | . 9 . 4 . . . 20 3 7 3 5 17 . . . . 22 . 10 2 4 3 4 . 5 4 . Catastrophic 30 | . 1 . . . . . 4 3 2 1 2 4 . . . . 5 . 2 1 3 . . . . 2 . Database Lockouts 2 | . 1 . 1 . . . . . . . . . . . . . . . . . . . . . . . . Manual 54 | . 8 . 3 . 2 1 9 . 4 1 . 8 . . . . 10 . 8 . . . . . . . . Terminals 137 | . 15 . 13 . . 1 25 5 8 1 6 13 . . . . 12 . 15 2 2 4 6 . 4 5 . Fabricators 14 | . . . . . . . . . . . . 4 . . . . 4 . 3 . . . . . 3 . . Repair Stations 27 | . 4 . . . . . 2 . 3 3 . 3 . . . . 10 . . . 2 . . . . . . Recycling Units 12 | . 4 . 2 . . . 3 . . 1 . 1 . . . . . . . . . . 1 . . . . Scanalyzers 18 | . . . . . . . 12 . . . . 2 . . . . 4 . . . . . . . . . . Garrison Access 10 | . . . . . . . 1 . . 2 . 2 . . . . . . 1 . 1 . 2 . 1 . . Terminal Hacks 69 | . 6 . 8 . 2 . 6 2 3 . 1 2 1 . 24 . 5 . 5 . . 1 2 . . 1 . Record 7 | . . . . . 1 . . . . . . . . . 6 . . . . . . . . . . . . Part Schematic 12 | . 1 . . . . . . . . . . . . . 10 . . . 1 . . . . . . . . Robot Schematic 5 | . . . . . . . . . . . . . . . 5 . . . . . . . . . . . . Robot Analysis 5 | . 1 . 1 . . . 3 . . . . . . . . . . . . . . . . . . . . Prototype ID Bank 10 | . . . 4 . . . 2 . . . . . . . 3 . . . 1 . . . . . . . . Open Door 3 | . . . . . . . . 1 . . 1 . 1 . . . . . . . . . . . . . . Open DSF 1 | . . . . . . . . . . . . . . . . . . . 1 . . . . . . . . Branch Access Points 6 | . . . 1 . . . 1 . . . . 1 . . . . 1 . 1 . . . 1 . . . . Emergency Access Points 3 | . 1 . . . . . . . . . . . . . . . . . . . . 1 . . . 1 . Terminal Index 2 | . 1 . . . . . . . . . . . . . . . 1 . . . . . . . . . . Fabricator Index 1 | . . . . . . . . . . . . . . . . . . . 1 . . . . . . . . Repair Station Index 1 | . . . . . . . . . . . . . . . . . 1 . . . . . . . . . . Unreport Threat 4 | . . . 1 . . . . . 1 . . 1 . . . . . . . . . . 1 . . . . Locate Traps 1 | . 1 . . . . . . . . . . . . . . . . . . . . . . . . . . Patrol Status 1 | . . . . . . . . . . . . . . . . . 1 . . . . . . . . . . Hauler Manifests 4 | . 1 . 1 . . . . . 1 . . . . . . . 1 . . . . . . . . . . Zone Layout 1 | . . . . . . . . . 1 . . . . . . . . . . . . . . . . . . Patrol Navigation 1 | . . . . . . . . 1 . . . . . . . . . . . . . . . . . . . EX-Prototype ID Bank 1 | . . . . . 1 . . . . . . . . . . . . . . . . . . . . . . Fabricator Hacks 2 | . . . . . . . . . . . . . . . . . . . . . . . . . 2 . . Load Schematic 1 | . . . . . . . . . . . . . . . . . . . . . . . . . 1 . . Build 1 | . . . . . . . . . . . . . . . . . . . . . . . . . 1 . . Repair Station Hacks 12 | . 4 . . . . . 2 . 1 2 . 1 . . . . 2 . . . . . . . . . . Scan Component 8 | . 2 . . . . . 1 . 1 1 . 1 . . . . 2 . . . . . . . . . . Repair 4 | . 2 . . . . . 1 . . 1 . . . . . . . . . . . . . . . . . Recycling Unit Hacks 9 | . 3 . 2 . . . 2 . . . . 1 . . . . . . . . . . 1 . . . . Retrieve Components 9 | . 3 . 2 . . . 2 . . . . 1 . . . . . . . . . . 1 . . . . Scanalyzer 10 | . . . . . . . 9 . . . . . . . . . 1 . . . . . . . . . . Insert Component 5 | . . . . . . . 4 . . . . . . . . . 1 . . . . . . . . . . Analyze 5 | . . . . . . . 5 . . . . . . . . . . . . . . . . . . . . Garrison Access Hacks 10 | . . . . . . . 1 . . 2 . 2 . . . . . . 1 . 1 . 2 . 1 . . Unlock Access 5 | . . . . . . . 1 . . 1 . . . . . . . . 1 . 1 . . . 1 . . Seal Access 3 | . . . . . . . . . . 1 . 1 . . . . . . . . . . 1 . . . . Coupler Status 2 | . . . . . . . . . . . . 1 . . . . . . . . . . 1 . . . . Unauthorized Hacks 9 | . . . . . . 1 3 . . . . 2 . . . . . . 3 . . . . . . . . Terminals 6 | . . . . . . 1 3 . . . . . . . . . . . 2 . . . . . . . . Track 1 | . . . . . . 1 . . . . . . . . . . . . . . . . . . . . . Botnet 2 | . . . . . . . 1 . . . . . . . . . . . 1 . . . . . . . . Operators 2 | . . . . . . . 1 . . . . . . . . . . . 1 . . . . . . . . Sabotage 1 | . . . . . . . 1 . . . . . . . . . . . . . . . . . . . . Fabricators 3 | . . . . . . . . . . . . 2 . . . . . . 1 . . . . . . . . Fabnet 3 | . . . . . . . . . . . . 2 . . . . . . 1 . . . . . . . . Repair Stations . | . . . . . . . . . . . . . . . . . . . . . . . . . . . . Recycling Units . | . . . . . . . . . . . . . . . . . . . . . . . . . . . . Scanalyzers . | . . . . . . . . . . . . . . . . . . . . . . . . . . . . Garrison Access . | . . . . . . . . . . . . . . . . . . . . . . . . . . . . Data Cores Recovered 2 | . . . . . . . . . 1 . . . . . . . . . . . . . . . 1 . . Used . | . . . . . . . . . . . . . . . . . . . . . . . . . . . . Hacking Detections 77 | . 6 . 4 . . . 10 3 4 2 3 13 . . . . 11 . 5 1 3 1 3 . 4 4 . Full Trace Events 8 | . 1 . . . . . 1 1 1 . . . . . . . 1 . . 1 . 1 . . 1 . . Feedback Events . | . . . . . . . . . . . . . . . . . . . . . . . . . . . . Feedback Blocked . | . . . . . . . . . . . . . . . . . . . . . . . . . . . . Robot Schematics Acquired 5 | . . . . . . . . . . . . . . . 5 . . . . . . . . . . . . Robots Built . | . . . . . . . . . . . . . . . . . . . . . . . . . . . . Authchips . | . . . . . . . . . . . . . . . . . . . . . . . . . . . . Time . | . . . . . . . . . . . . . . . . . . . . . . . . . . . . Total Robot Build Rating . | . . . . . . . . . . . . . . . . . . . . . . . . . . . . Part Schematics Acquired 16 | . 1 . . . . . 4 . . . . . . . 10 . . . 1 . . . . . . . . Parts Built 2 | . . . . . . . . . . . . . . . . . . . . . . . . . 2 . . Authchips . | . . . . . . . . . . . . . . . . . . . . . . . . . . . . Time 42 | . . . . . . . . . . . . . . . . . . . . . . . . . 42 . . Total Part Build Rating 8 | . . . . . . . . . . . . . . . . . . . . . . . . . 8 . . Parts Repaired 4 | . 2 . . . . . 1 . . 1 . . . . . . . . . . . . . . . . . Time 134 | . 52 . . . . . 38 . . 44 . . . . . . . . . . . . . . . . . Parts Recycled . | . . . . . . . . . . . . . . . . . . . . . . . . . . . . Recycled Matter . | . . . . . . . . . . . . . . . . . . . . . . . . . . . . Retrieved Matter . | . . . . . . . . . . . . . . . . . . . . . . . . . . . . Retrieved Components 29 | . 8 . 10 . . . 6 . . . . 2 . . . . . . . . . . 3 . . . . Parts Scanalyzed 5 | . . . . . . . 4 . . . . . . . . . 1 . . . . . . . . . . Part Schematics Acquired 4 | . . . . . . . 4 . . . . . . . . . . . . . . . . . . . . Parts Damaged . | . . . . . . . . . . . . . . . . . . . . . . . . . . . . Bothacking | -11 -10 -10 -9 -9 -9 -8 -8 -8 -8 -7 -7 -7 -7 -7 -7 -6 -6 -6 -6 -6 -6 -6 -5 -5 -5 -5 -5 ------------ Run | Jun Mat Min Mat Min Exi Min Mat Gar Mat Fac Gar Fac Low Low Dat Pro Fac Was Fac Gar Fac Gar Fac Was Fac Gar Fac Used RIF Installer 6 | . . . . . . . . 1 . . 1 . . . . . . . . 2 . 1 . . . 1 . Watcher Feeds 1 | . . . . . . . . . . . 1 . . . . . . . . . . . . . . . . Patrol Navigation 1 | . . . . . . . . . . . . . . . . . . . . . . 1 . . . . . Alert ID Control 1 | . . . . . . . . . . . . . . . . . . . . 1 . . . . . . . Program Shield 1 | . . . . . . . . . . . . . . . . . . . . . . . . . . 1 . Autoassimilate 1 | . . . . . . . . . . . . . . . . . . . . 1 . . . . . . . Robots Hacked 76 | . . . . . . . . . . 1 5 4 1 . . . 3 . 1 10 . 8 4 6 . 12 21 Non-combat 12 | . . . . . . . . . . . . 4 . . . . 2 . 1 . . . 1 . . . 4 Combat 64 | . . . . . . . . . . 1 5 . 1 . . . 1 . . 10 . 8 3 6 . 12 17 Autoassimilated 11 | . . . . . . . . . . . . . . . . . . . . . . 4 2 . . 2 3 Robot Hacks Applied 62 | . . . . . . . . . . 1 5 6 2 . . . 2 . 1 9 . 2 2 7 . 9 16 parse_system 5 | . . . . . . . . . . . . . . . . . . . . 2 . . . 1 . . 2 drop_inventory 5 | . . . . . . . . . . . . 1 . . . . 1 . . . . . 1 . . . 2 block_reporting 1 | . . . . . . . . . . . . 1 . . . . . . . . . . . . . . . summon_haulers 1 | . . . . . . . . . . . . 1 . . . . . . . . . . . . . . . map_route 4 | . . . . . . . . . . . . 1 . . . . 1 . 1 . . . . . . . 1 mark_security 1 | . . . . . . . . . . . . 1 . . . . . . . . . . . . . . . ignore_targets 6 | . . . . . . . . . . . . . . . . . . . . . . . . 6 . . . emergency_deploy 1 | . . . . . . . . . . . . . . . . . . . . . . . . . . . 1 disrupt_area 1 | . . . . . . . . . . . . . . . . . . . . . . . . . . . 1 spike_heat 1 | . . . . . . . . . . . . . . . . . . . . . . . . . . 1 . amplify_resonance 20 | . . . . . . . . . . . 4 . . . . . . . . 4 . 2 . . . 4 6 reboot_system 3 | . . . . . . . . . . . . . 2 . . . . . . 1 . . . . . . . overwrite_iff 9 | . . . . . . . . . . . 1 . . . . . . . . 2 . . 1 . . 4 1 streamctrl_high 1 | . . . . . . . . . . . . . . . . . . . . . . . . . . . 1 formatsys_low 2 | . . . . . . . . . . . . 1 . . . . . . . . . . . . . . 1 formatsys_high 1 | . . . . . . . . . . 1 . . . . . . . . . . . . . . . . . Relay Couplers Released 89 | . . . . . . . . 15 . 3 16 6 . . . . . . . 26 . 12 . . . 11 . Machine Destruction 78 | . . . . . . . . 11 . 3 13 2 . . . . . . . 26 . 12 . . . 11 . Programmers 11 | . . . . . . . . 4 . . 3 4 . . . . . . . . . . . . . . . Attached 33 | . . . . . . . . . 1 1 3 4 1 . . . 1 . . 7 . 2 2 . . 5 6 Fabnet Peak Effective % 6 | . . . . . . . . . . . . . . . . 6 6 6 6 6 6 6 5 5 5 5 5 Autooverrided 11 | . . . . . . . . . . . . . . . . . 1 . . 2 . 2 . . . 1 5 Robots Rewired 8 | . . . . . . . . . . . 3 . . . . . . . . 2 . . . . . 3 . Allies Hacked . | . . . . . . . . . . . . . . . . . . . . . . . . . . . . Hacks Repelled . | . . . . . . . . . . . . . . . . . . . . . . . . . . . . Allies | -11 -10 -10 -9 -9 -9 -8 -8 -8 -8 -7 -7 -7 -7 -7 -7 -6 -6 -6 -6 -6 -6 -6 -5 -5 -5 -5 -5 -------- Run | Jun Mat Min Mat Min Exi Min Mat Gar Mat Fac Gar Fac Low Low Dat Pro Fac Was Fac Gar Fac Gar Fac Was Fac Gar Fac Total Allies 68 | . . 4 . . . . . 1 . 1 4 1 . . . 1 1 20 . 5 . 6 3 . . 10 11 Largest Group 20 | . . 4 . . . . . 1 . 1 3 1 1 . . 1 1 20 20 9 2 2 1 . . 4 2 Highest-Rated Group 702 | . . 71 . . . . . 31 . 27 93 26 26 . . 96 37 702 702 347 264 264 29 . . 116 53 Highest-Rated Ally 148 | . . 31 . . . . . 31 . 27 32 26 26 . . 96 37 46 46 148 148 148 29 . . 49 49 Total Orders 19 | . . . . . 2 2 1 . . . . 2 1 . . . . . . 7 . 1 . . . . 3 STAY 5 | . . . . . . . . . . . . 1 1 . . . . . . 1 . . . . . . 2 ROAM 3 | . . . . . . . . . . . . . . . . . . . . 2 . 1 . . . . . FOLLOW 5 | . . . . . . . . . . . . 1 . . . . . . . 4 . . . . . . . AID 1 | . . . . . . . . . . . . . . . . . . . . . . . . . . . 1 EXPLORE 3 | . . . . . 1 1 1 . . . . . . . . . . . . . . . . . . . . RETURN 2 | . . . . . 1 1 . . . . . . . . . . . . . . . . . . . . . Ally Attacks 393 | . . 48 . . . . . 13 . . 22 . . . . 8 . . 132 65 2 42 2 . . 32 27 Total Damage 7656 | . . 640 . . . . . 124 . . 404 . . . . 268 . . 2433 1848 176 861 19 . . 444 439 Kills 63 | . . 11 . . . . . 1 . . 4 . . . . 2 . . 17 16 1 5 . . . 3 3 Allies Corrupted 1 | . . . . . . . . . . . . . . . . . . . 1 . . . . . . . . Allies Melted 1 | . . . . . . . . . . . . . . . . 1 . . . . . . . . . . . Intel | -11 -10 -10 -9 -9 -9 -8 -8 -8 -8 -7 -7 -7 -7 -7 -7 -6 -6 -6 -6 -6 -6 -6 -5 -5 -5 -5 -5 ------- Run | Jun Mat Min Mat Min Exi Min Mat Gar Mat Fac Gar Fac Low Low Dat Pro Fac Was Fac Gar Fac Gar Fac Was Fac Gar Fac Robot Analysis Total 5 | . 1 . 1 . . . 3 . . . . . . . . . . . . . . . . . . . . Derelict Logs Recovered 1 | . . 1 . . . . . . . . . . . . . . . . . . . . . . . . . Drone Launches 3 | . . . . . 1 1 1 . . . . . . . . . . . . . . . . . . . . Drone Recoveries 2 | . . . . . 1 1 . . . . . . . . . . . . . . . . . . . . . Exploration | -11 -10 -10 -9 -9 -9 -8 -8 -8 -8 -7 -7 -7 -7 -7 -7 -6 -6 -6 -6 -6 -6 -6 -5 -5 -5 -5 -5 ------------- Run | Jun Mat Min Mat Min Exi Min Mat Gar Mat Fac Gar Fac Low Low Dat Pro Fac Was Fac Gar Fac Gar Fac Was Fac Gar Fac Turns Passed 43304 | 93 2737 1417 1750 1152 724 411 3543 3676 1310 1677 2343 2618 731 313 155 1412 3209 698 477 2433 229 2487 1562 227 473 2695 2752 Spaces Moved 18345 | 55 1088 516 675 457 297 148 1274 1281 486 845 1023 1417 353 192 93 505 1518 342 250 1077 128 995 680 109 209 1214 1118 Core 313 | 4 . . . . . . . . . . . . . . . . . . . . . . . . . . 309 Treads 15804 | 51 1088 516 675 457 297 148 1274 895 . 817 1023 1417 353 192 93 505 436 311 250 1077 128 995 680 109 209 1214 594 Legs 1112 | . . . . . . . . 386 486 28 . . . . . . . . . . . . . . . . 212 Wheels 1113 | . . . . . . . . . . . . . . . . . 1082 31 . . . . . . . . . Hover 3 | . . . . . . . . . . . . . . . . . . . . . . . . . . . 3 Flight . | . . . . . . . . . . . . . . . . . . . . . . . . . . . . Fastest Speed 50 | 50 160 240 160 160 160 160 160 160 190 160 160 160 160 160 160 160 135 160 160 160 166 166 165 160 160 160 50 Average Speed 187 | 152 217 240 193 234 232 227 222 243 203 165 167 160 160 160 160 214 173 163 163 164 166 185 165 165 160 165 157 Slowest Speed 2250 | 160 240 240 240 240 240 240 400 610 330 320 244 160 163 160 160 245 480 243 240 240 166 250 166 245 160 240 2250 Overloaded Moves . | . . . . . . . . . . . . . . . . . . . . . . . . . . . . Propulsion Burnouts . | . . . . . . . . . . . . . . . . . . . . . . . . . . . . Robots Hopped . | . . . . . . . . . . . . . . . . . . . . . . . . . . . . Cave-ins Triggered . | . . . . . . . . . . . . . . . . . . . . . . . . . . . . Exploration Rate (%) 56 | 3 98 89 58 78 91 92 75 95 24 15 96 40 49 44 68 56 43 87 12 72 4 71 14 65 4 97 28 Regions Visited 27 Branch Regions 8 Pre-discovered Areas 2 | . . . . . 1 . . . . . . . . . 1 . . . . . . . . . . . . Known Exits Taken 8 | . . . 1 . . 1 1 . . 1 . 1 . . . . . . 1 . 1 . . . 1 . . Unknown Exits Taken 10 | 1 1 1 . 1 1 . . . 1 . . . 1 1 1 1 . . . . . . . . . . . Scrap Searched 7 | . . 3 . 1 . . . . . . . . 1 . . 2 . . . . . . . . . . . Spaces Dug 163 | . . 1 . . . 6 4 18 9 13 1 12 . . . 10 38 . 2 20 1 4 3 . 7 5 9 Terrain Destroyed 1104 | . . 1 86 20 . 41 46 173 90 42 79 40 9 . . 46 54 . 2 22 1 8 60 2 7 86 189 Melee 2 | . . 1 . . . . . . . . 1 . . . . . . . . . . . . . . . . Projectile 302 | . . . . . . . 46 2 31 19 2 18 9 . . 35 54 . 2 10 1 8 5 2 7 21 30 AOE 793 | . . . 86 20 . 41 . 171 59 23 76 22 . . . 11 . . . 12 . . 55 . . 65 152 Terrain Rammed . | . . . . . . . . . . . . . . . . . . . . . . . . . . . . Walls Destroyed . | . . . . . . . . . . . . . . . . . . . . . . . . . . . . Machines Disabled . | . . . . . . . . . . . . . . . . . . . . . . . . . . . . Actions | -11 -10 -10 -9 -9 -9 -8 -8 -8 -8 -7 -7 -7 -7 -7 -7 -6 -6 -6 -6 -6 -6 -6 -5 -5 -5 -5 -5 --------- Run | Jun Mat Min Mat Min Exi Min Mat Gar Mat Fac Gar Fac Low Low Dat Pro Fac Was Fac Gar Fac Gar Fac Was Fac Gar Fac Total 24580 | 62 1325 611 938 494 332 216 1782 1633 692 1072 1471 1712 453 197 99 776 1970 442 313 1529 143 1450 958 141 304 1736 1729 Wait 3400 | . 121 42 100 6 23 60 250 140 76 140 245 210 54 5 1 221 285 35 55 231 15 282 142 9 59 339 254 Move 18320 | 54 1087 515 674 456 296 147 1273 1280 485 845 1021 1416 352 191 92 504 1518 341 249 1076 127 994 680 108 208 1213 1118 Hop . | . . . . . . . . . . . . . . . . . . . . . . . . . . . . Pick Up 236 | 2 15 2 14 1 1 . 34 13 14 12 26 8 2 . . 1 12 7 . 19 . 10 7 2 1 15 18 Fast Attach 177 | 6 3 . 6 . 2 1 16 14 11 4 11 3 . . 2 . 17 10 1 8 . 11 5 3 2 8 33 Attach 110 | . 2 2 9 2 2 . 12 11 6 4 7 1 . . . . 1 2 . 4 . 6 10 . 1 5 23 Detach 43 | . 2 . . . 2 1 7 2 2 1 3 . . . . . 2 . . 3 . 2 4 1 2 3 6 Swap 417 | . 11 3 22 7 3 4 33 26 16 19 27 14 11 1 1 10 23 5 4 44 . 16 21 6 4 35 51 Drop 264 | . 5 . 14 . 3 . 37 18 16 9 29 12 . . 3 . 27 20 . 19 . 15 7 . 2 12 16 Fire 1511 | . 73 33 94 22 . 3 106 119 60 38 101 43 34 . . 40 75 21 3 124 1 98 81 12 25 106 199 Melee 21 | . . 13 . . . . 6 . . . 1 . . . . . . . . 1 . . . . . . . Ram 1 | . . . . . . . . . . . . . . . . . 1 . . . . . . . . . . Kick 5 | . . . . . . . . . 5 . . . . . . . . . . . . . . . . . . Crush 37 | . 6 . 5 . . . 8 2 . . . 5 . . . . 1 . 1 . . 2 1 . . . 6 Escape Stasis 35 | . . . . . . . . 8 . . . . . . . . 8 . . . . 14 . . . . 5 Rewire 1 | . . . . . . . . . . . . . . . . . . 1 . . . . . . . . . Trap 2 | . . 1 . . . . . . 1 . . . . . . . . . . . . . . . . . . Miscellaneous . | . . . . . . . . . . . . . . . . . . . . . . . . . . . . Route ------- -11/Junkyard -10/Materials (discovered 4 exits: *Mat x3 / [*Min]) -10/Mines -9/Materials (discovered 3 exits: *Mat x2 / *Min) -9/Mines (discovered 2 exits: *Mat / *Exi) -9/Exiles (discovered 2 exits: *Min x2) -8/Mines (discovered 2 exits: *Mat x2) -8/Materials (discovered 3 exits: *Fac x2 / Gar) -8/Garrison (discovered 4 exits: *Mat x4) -8/Materials -7/Factory (discovered 2 exits: *Fac / Gar) -7/Garrison (discovered 3 exits: *Fac x3) -7/Factory (discovered 4 exits: *Fac / *Sto / *Low x2) -7/Lower Caves -7/Lower Caves -7/Data Miner -6/Proximity Caves -6/Factory (discovered 4 exits: *Fac x2 / *Low x2) -6/Waste -6/Factory (discovered 3 exits: Low x2 / Gar) -6/Garrison (discovered 4 exits: *Fac x4) -6/Factory -6/Garrison (discovered 3 exits: *Fac x3) -5/Factory (discovered 2 exits: Upp x2) -5/Waste -5/Factory -5/Garrison (discovered 4 exits: [*Fac x4]) -5/Factory History --------- Turn | Location | Event 7 | -11/Junkyard | Discovered new exit (range 15) 94 | -11/Junkyard | Entered Materials 248 | -10/Materials | Discovered new exit (range 13) 331 | -10/Materials | Build established: Mutant 361 | -10/Materials | Discovered new exit (range 16) 445 | -10/Materials | Central database locked down 680 | -10/Materials | Build established: Scavenger-Mutant 1035 | -10/Materials | Discovered new exit (range 15) 1100 | -10/Materials | Repaired Lgt. Treads 1303 | -10/Materials | Discovered new exit (range 10) 2215 | -10/Materials | Build established: Mutant 2804 | -10/Materials | Repaired Lgt. Treads 2831 | -10/Materials | Entered Mines 2878 | -10/Mines | Met a Derelict bent on vengeance 3065 | -10/Mines | Excavation squad dispatched 3065 | -10/Mines | A large section of the Mines collapsed 3251 | -10/Mines | Core integrity fell below 50% 3315 | -10/Mines | Excavation squad dispatched 3565 | -10/Mines | Excavation squad dispatched 3591 | -10/Mines | Learned location of 1 exit from Materials 3607 | -10/Mines | Assisted by bots powering up and referring to "LRC-V3" 3694 | -10/Mines | Received a Mining Laser from a helpful Derelict 3815 | -10/Mines | Excavation squad dispatched 4046 | -10/Mines | Found a hidden stash of uninstalled traps 4065 | -10/Mines | Excavation squad dispatched 4125 | -10/Mines | Core integrity fell below 20% 4231 | -10/Mines | Discovered new exit (range 7) 4248 | -10/Mines | Entered Materials 4248 | -9/Materials | Evolved 2 slots: Propulsion x1, Utility x1 4249 | -9/Materials | Identified exit to Materials 4419 | -9/Materials | Lost 5 parts (1p2n1u1w) 4539 | -9/Materials | Discovered new exit (range 12) 4744 | -9/Materials | Destroyed 7 combat bots 4772 | -9/Materials | Build established: Scavenger-Mutant 5204 | -9/Materials | Central database locked down 5204 | -9/Materials | Identified exit to Mines 5397 | -9/Materials | Discovered exit to Materials (range 12) 5448 | -9/Materials | First assault squad dispatched 5549 | -9/Materials | Destroyed 7 combat bots 5998 | -9/Materials | Entered Mines 6060 | -9/Mines | Build established: Mutant 6150 | -9/Mines | Destroyed 8 combat bots 6219 | -9/Mines | Assembled infested the area 6369 | -9/Mines | Received a Rocket Launcher from a helpful Derelict 6606 | -9/Mines | Core integrity fell below 50% 6805 | -9/Mines | Discovered exit to Materials (range 13) 7140 | -9/Mines | Deemed a non-threat by the Exiles lab entrance 7140 | -9/Mines | Discovered new exit (range 5) 7150 | -9/Mines | Entered Exiles 7189 | -9/Exiles | Discovered new exit (range 15) 7218 | -9/Exiles | Met 8R-AWN 7254 | -9/Exiles | Met EX-HEX 7321 | -9/Exiles | Met EX-BIN 7359 | -9/Exiles | Met EX-DEC 7371 | -9/Exiles | Learned location of Zion (-6) 7462 | -9/Exiles | Aligned with FarCom system 7465 | -9/Exiles | Given EX-Vault access code 7530 | -9/Exiles | Opened EX-Vault 7550 | -9/Exiles | Found YOLO Cannon 7588 | -9/Exiles | Found Supersonic Drone Bay 7603 | -9/Exiles | Discovered new exit (range 56) 7686 | -9/Exiles | Warned to stay clear of 0b10 Research branches 7874 | -9/Exiles | Left Exiles lab with Supersonic Drone Bay 7874 | -9/Exiles | Entered Mines 7918 | -8/Mines | Discovered exit to Materials (range 61) 7918 | -8/Mines | Discovered exit to Materials (range 68) 8285 | -8/Mines | Entered Materials 8285 | -8/Materials | Evolved 2 slots: Propulsion x1, Utility x1 8885 | -8/Materials | Lost 3 parts (3n) 9301 | -8/Materials | Discovered new exit (range 3) 9595 | -8/Materials | Discovered new exit (range 4) 11579 | -8/Materials | Identified exit to Garrison 11658 | -8/Materials | Repaired Arm. Treads 11828 | -8/Materials | Entered Garrison 12062 | -8/Garrison | Triggered checkpoint 12797 | -8/Garrison | Build established: Scavenger-Mutant 12914 | -8/Garrison | Triggered checkpoint 13005 | -8/Garrison | Discovered new exit (range 10) 13107 | -8/Garrison | Lost 5 parts (1p1n1u2w) 13264 | -8/Garrison | Triggered checkpoint 13284 | -8/Garrison | Garrison Relay disabled 13386 | -8/Garrison | Triggered checkpoint 13417 | -8/Garrison | Discovered new exit (range 3) 13508 | -8/Garrison | Triggered checkpoint 13599 | -8/Garrison | Discovered new exit (range 15) 13674 | -8/Garrison | Triggered checkpoint 13739 | -8/Garrison | Rescued a captive Derelict 14200 | -8/Garrison | Discovered new exit (range 12) 14252 | -8/Garrison | Build established: Mutant 14337 | -8/Garrison | Triggered checkpoint 14455 | -8/Garrison | Garrison Relay disabled 14667 | -8/Garrison | Build established: Scavenger-Mutant 14983 | -8/Garrison | Installed Relay Interface Framework 15326 | -8/Garrison | Garrison Relay disabled 15504 | -8/Garrison | Entered Materials 15904 | -8/Materials | First assault squad dispatched 15969 | -8/Materials | Core integrity fell below 50% 16020 | -8/Materials | Lost 4 parts (1p2n1u) 16473 | -8/Materials | Core integrity fell below 20% 16751 | -8/Materials | Discovered new exit (range 5) 16760 | -8/Materials | Build established: Mutant 16814 | -8/Materials | Entered Factory 16814 | -7/Factory | Evolved 2 slots: Propulsion x1, Utility x1 17214 | -7/Factory | First assault squad dispatched 17309 | -7/Factory | Build established: Bothacker-Mutant 17414 | -7/Factory | Destroyed 8 combat bots 18026 | -7/Factory | Repaired Med. Treads 18304 | -7/Factory | Discovered new exit (range 16) 18491 | -7/Factory | Identified exit to Garrison 18491 | -7/Factory | Entered Garrison 18536 | -7/Garrison | Phase Generator disabled 18916 | -7/Garrison | Garrison Relay disabled 19014 | -7/Garrison | Triggered checkpoint 19338 | -7/Garrison | Discovered new exit (range 5) 19399 | -7/Garrison | Triggered checkpoint 19432 | -7/Garrison | Expanded RIF knowledge: Watcher Feeds 19450 | -7/Garrison | Garrison Relay disabled 19814 | -7/Garrison | Discovered new exit (range 14) 19862 | -7/Garrison | Triggered checkpoint 19908 | -7/Garrison | Garrison Relay disabled 20683 | -7/Garrison | Discovered new exit (range 12) 20834 | -7/Garrison | Entered Factory 21132 | -7/Factory | Identified exit to Storage 21132 | -7/Factory | Identified exit to Lower Caves 22314 | -7/Factory | Found Prototype Launcher 22314 | -7/Factory | Identified Rocket Array 22418 | -7/Factory | Discovered new exit (range 13) 23452 | -7/Factory | Entered Lower Caves 23452 | -7/Lower Caves | Accompanied by 1 ally 23453 | -7/Lower Caves | Encountered a Warlord checkpoint 23605 | -7/Lower Caves | Spotted B-75 Beast 23648 | -7/Lower Caves | Destroyed B-75 Beast 24153 | -7/Lower Caves | Discovered new exit (range 15) 24183 | -7/Lower Caves | Entered another Lower Caves area 24416 | -7/Lower Caves | Discovered new exit (range 16) 24496 | -7/Lower Caves | Entered Data Miner 24497 | -7/Data Miner | Discovered new exit (range 6) 24528 | -7/Data Miner | Met Data Miner 24557 | -7/Data Miner | Learned location of Section 7 (-3) 24557 | -7/Data Miner | Acquired the access code to Warlord's prototype stash 24587 | -7/Data Miner | Received God Mode back door access code from Data Miner 24651 | -7/Data Miner | Entered Proximity Caves 24739 | -6/Proximity Caves | Escorted by Enhanced Grunt 24751 | -6/Proximity Caves | Spotter reported a threat 24753 | -6/Proximity Caves | Spotter reported a threat 24874 | -6/Proximity Caves | Attracted the attention of an 0b10 checkpoint 25937 | -6/Proximity Caves | Discovered new exit (range 6) 26063 | -6/Proximity Caves | Entered Factory 26063 | -6/Factory | Evolved 2 slots: Utility x2 26723 | -6/Factory | Identified exit to Lower Caves 27694 | -6/Factory | Discovered new exit (range 13) 28373 | -6/Factory | Spotted B-75 Beast 28408 | -6/Factory | Discovered new exit (range 3) 28560 | -6/Factory | Incoming investigation squad redirected 29272 | -6/Factory | Sucked down chute 29272 | -6/Factory | Entered Waste 29273 | -6/Waste | Joined by Warlord forces that had cleared the area 29795 | -6/Waste | Discovered new exit (range 13) 29970 | -6/Waste | Entered Factory 29970 | -6/Factory | Accompanied by 20 allies 30055 | -6/Factory | Identified exit to DSF 30367 | -6/Factory | Garrison activated, responded to threat 30419 | -6/Factory | Identified exit to Garrison 30447 | -6/Factory | Entered Garrison 30447 | -6/Garrison | Accompanied by 9 allies 30466 | -6/Garrison | Triggered checkpoint 30570 | -6/Garrison | Discovered new exit (range 6) 30757 | -6/Garrison | Expanded RIF knowledge: Alert ID Control 30798 | -6/Garrison | Triggered checkpoint 30819 | -6/Garrison | Garrison Relay disabled 30944 | -6/Garrison | Triggered checkpoint 30954 | -6/Garrison | Triggered checkpoint 31065 | -6/Garrison | Discovered new exit (range 10) 31112 | -6/Garrison | Triggered checkpoint 31141 | -6/Garrison | Garrison Relay disabled 31634 | -6/Garrison | Triggered checkpoint 31688 | -6/Garrison | Discovered new exit (range 10) 31749 | -6/Garrison | Garrison Relay disabled 31752 | -6/Garrison | Garrison Relay disabled 31755 | -6/Garrison | Garrison Relay disabled 31758 | -6/Garrison | Garrison Relay disabled 31773 | -6/Garrison | Local machine network offline 31979 | -6/Garrison | Triggered checkpoint 32020 | -6/Garrison | Spotted B-75 Beast 32024 | -6/Garrison | Spotted B-86 Titan 32126 | -6/Garrison | Rewired B-86 Titan 32134 | -6/Garrison | Allies destroyed B-86 Titan 32137 | -6/Garrison | Rewired B-90 Cyclops 32140 | -6/Garrison | Allies destroyed B-75 Beast 32371 | -6/Garrison | Garrison Relay disabled 32482 | -6/Garrison | Triggered checkpoint 32548 | -6/Garrison | Discovered new exit (range 10) 32567 | -6/Garrison | Expanded RIF knowledge: Autoassimilate 32851 | -6/Garrison | Build established: Botlord-Mutant 32880 | -6/Garrison | Entered Factory 32880 | -6/Factory | Accompanied by 2 allies 33066 | -6/Factory | Identified exit to Garrison 33109 | -6/Factory | Entered Garrison 33109 | -6/Garrison | Accompanied by 2 allies 33153 | -6/Garrison | Triggered checkpoint 33154 | -6/Garrison | Triggered checkpoint 33160 | -6/Garrison | Expanded RIF knowledge: Patrol Navigation 33166 | -6/Garrison | Triggered checkpoint 33444 | -6/Garrison | Discovered new exit (range 10) 33490 | -6/Garrison | Triggered checkpoint 33516 | -6/Garrison | Garrison Relay disabled 33664 | -6/Garrison | Triggered checkpoint 34058 | -6/Garrison | Discovered new exit (range 8) 34241 | -6/Garrison | Discovered new exit (range 12) 34372 | -6/Garrison | Spotted Executioner 34424 | -6/Garrison | Destroyed Executioner 34598 | -6/Garrison | Triggered checkpoint 34665 | -6/Garrison | Garrison Relay disabled 34948 | -6/Garrison | Triggered checkpoint 34979 | -6/Garrison | Garrison Relay disabled 35196 | -6/Garrison | Triggered checkpoint 35596 | -6/Garrison | Entered Factory 35596 | -5/Factory | Evolved 2 slots: Propulsion x1, Utility x1 35659 | -5/Factory | Identified exit to Upper Caves 35896 | -5/Factory | First assault squad dispatched 36817 | -5/Factory | Incoming assault squad redirected 37083 | -5/Factory | Incoming assault squad redirected 37111 | -5/Factory | Garrison activated, responded to threat 37117 | -5/Factory | Incoming assault squad redirected 37124 | -5/Factory | Incoming assault squad redirected 37138 | -5/Factory | Lost 4 parts (3n1u) 37142 | -5/Factory | Incoming assault squad redirected 37158 | -5/Factory | Sucked down chute 37158 | -5/Factory | Entered Waste 37167 | -5/Waste | Found Gamma Bomb Array 37171 | -5/Waste | Spotted C-40 Crusher 37173 | -5/Waste | EMP discharged 37173 | -5/Waste | System corruption reached 10% 37177 | -5/Waste | Spotted C-40 Crusher 37197 | -5/Waste | Spotted C-40 Crusher 37216 | -5/Waste | Spotted C-40 Crusher 37257 | -5/Waste | Spotted C-40 Crusher 37273 | -5/Waste | EMP discharged 37292 | -5/Waste | Discovered new exit (range 10) 37300 | -5/Waste | Destroyed C-40 Crusher 37306 | -5/Waste | Spotted C-40 Crusher 37342 | -5/Waste | Destroyed C-40 Crusher 37373 | -5/Waste | EMP discharged 37385 | -5/Waste | Entered Factory 37486 | -5/Factory | Fabricated Powered Armor (x2) 37673 | -5/Factory | System corruption reached 30% 37805 | -5/Factory | Identified exit to Garrison 37858 | -5/Factory | Entered Garrison 37884 | -5/Garrison | Expanded RIF knowledge: Program Shield 38069 | -5/Garrison | Garrison Relay disabled 38571 | -5/Garrison | Triggered checkpoint 38573 | -5/Garrison | Triggered checkpoint 38616 | -5/Garrison | Destroyed 7 combat bots 38676 | -5/Garrison | Destroyed 9 combat bots 38781 | -5/Garrison | Discovered new exit (range 15) 38848 | -5/Garrison | Triggered checkpoint 38906 | -5/Garrison | Garrison Relay disabled 39058 | -5/Garrison | Discovered new exit (range 14) 39338 | -5/Garrison | Triggered checkpoint 39360 | -5/Garrison | Garrison Relay disabled 39392 | -5/Garrison | Triggered checkpoint 39421 | -5/Garrison | Discovered new exit (range 5) 39540 | -5/Garrison | Triggered checkpoint 39667 | -5/Garrison | Discovered new exit (range 10) 39672 | -5/Garrison | Triggered checkpoint 39820 | -5/Garrison | Found Unknown Hackware 39820 | -5/Garrison | Identified Relay Coupler [Proto] 39842 | -5/Garrison | Found Relay Coupler [Proto] 40228 | -5/Garrison | Triggered checkpoint 40553 | -5/Garrison | Entered Factory 40553 | -5/Factory | Accompanied by 1 ally 40853 | -5/Factory | First assault squad dispatched 41031 | -5/Factory | Local machine network offline 41478 | -5/Factory | Incoming assault squad redirected 41906 | -5/Factory | Incoming assault squad redirected 41934 | -5/Factory | Incoming assault squad redirected 41973 | -5/Factory | Lost 5 parts (3n1u1w) 42266 | -5/Factory | Lost 8 parts (2p1n4u1w) 42541 | -5/Factory | Found Prototype Launcher 42542 | -5/Factory | Identified Mni. Smartbomb Launcher 42662 | -5/Factory | Spotted B-75 Beast 42677 | -5/Factory | Incoming assault squad redirected 42973 | -5/Factory | Incoming assault squad redirected 43084 | -5/Factory | High security lockdown imminent 43109 | -5/Factory | Cargo convoy interrupted 43124 | -5/Factory | Core integrity fell below 50% 43146 | -5/Factory | Core integrity fell below 20% 43164 | -5/Factory | High security lockdown engaged 43173 | -5/Factory | Lost 13 parts (1p4n5u3w) 43305 | -5/Factory | Destroyed by H-66 Slayer with Gauss Rifle Last Messages --------------- 43240_ E-15 Imp unfolds itself. 43241_ Fabnet algorithm triggers B-60 Warrior IFF filter rewrite. 43241_ E-15 Imp sneak attacks. 43241_ B-60 Warrior Imp. Treads blown off. 43241_ B-60 Warrior Imp. Medium Armor Plating blown off. 43241_ B-60 Warrior Imp. Treads blown off. 43241_ E-15 Imp destroyed. 43242_ G-67 Veteran knocked back. 43252_ Construction Platform disabled. 43255_ UUS8JXBDL=BQE/ZD /B#HKMGP5C 43270_ G#>B9HZ# 8RX<8VTFND=H:>YSI1K 43284_ ALERT: Assault forces dispatched. 43285_ System corrupted: Matter fused (-9). 43301_ System corrupted: Energy discharge (-27). 43304_ C-30 ARC bursts open, deploying its payload. 43304_ H-66 Slayer unfolds itself. 43304_ P-70 Sage unfolds itself. 43304_ Penetrated by Slug. 43304_ Slug penetrates Wall. [Achievement: 40k Club] Map ----- +----------------------------------------------------+ | ##### ##### | | ##+###???#+#???? | | ######## ???? #??? | | ####+#########??? ""??""""" #??? | | """"" " # ! #??# #??? | | """"""" # #??# """"""""" #??? | | """"""" # """ """ #??# #??? | | """"""" # """ """ #??# """"""""" #??? | | # """ """ #??# #??? | | """"""" # ????####???######?## | | """"""" # """ ?????????????????# | | """"""" # """ ?????????????????# | | """"""" #### """ ""? ??????????????????# | | #??# "R? ???????????????????????# | | #??# "???????????????????????????# | | ##########??# ????????????????????????????# | | #???????????#?????????????????????????????# | | #?????????????????????????????????????????# | | ##????????????????????????????????????????# | | % #?????????????????????????????????????????# | | #?????????????????????????????????????????# | | #????????????????###########??????????????# | | #????????????????# ####+############ | | #????????????????# ! | | #????????????????# | | #????????????????# @ | | #????????????????+ | | #????????????????# | | #????????????????# | | #????????????????# hpm | | #????????????????# ####h############ | | #????????????????### ###???? ?????????? | | #### #??????????????????# #???????? ???????? | | ##?# #??????????????????# #?????????" ??????? | | ##?# #??????????????????# #?????????????????? | | ####+###????????????????# #?????????????????? | | # #???????Y????????# #?????????????????? | | # #????????????????# #?????????????????? | | + """ #???????????????? ?????????????????? | | #= """ #???????????????# ?????????????????? | | ## """ #???????????????# ??????????????????? | | ## #?????????????????? Y ??????????????????? | | ###########?????????????????? ???????????????????? | | # #??????????????????????????????????????? | | # !!! ""#??????????????????????????????????????? | | # !!! Y"#??????????????????????????????????????? | | + !!! ""#??????????????????????????????????????? | | # #??????????????????????????????????????? | | #? #??????????????????????????????????????? | | #?? ! #??????????????????????????????????????? | +----------------------------------------------------+ Best States ------------- Heat Dissipation 99 Coolant Potential 65 Energy Generation 23 Energy Capacity 675 Matter Stores 300 Matter Capacity 300 Sight Range 20 Robot Scan Range 18 Terrain Scan Density 10 Jamming Range 16 Armor Coverage 1600 Resistance: KI 20 Resistance: TH 30 Resistance: EM 20 Propulsion Shielding 33 Weapon Cycling 30 Melee Speed Boost 20 Phase Shifting 10 Evasion (%) 50 Targeting Accuracy 6 Launcher Accuracy 30 Recoil Reduction 6 Particle Charging 15 Kinecelleration 40 Relay Coupler Types 5 Relay Coupler Value 137 Item Schematics ----------------- Huge Storage Unit | -10/Materials | Hacked Imp. Light Armor Plating | -8/Materials | Scanalyzed Reflective Plating | -8/Materials | Scanalyzed Plasma Cannon | -8/Materials | Scanalyzed Cooling System | -8/Materials | Scanalyzed Combat Drone Bay | -7/Data Miner | Free Lgt. Regenerative Plating | -7/Data Miner | Free Cld. Aerolev Unit | -7/Data Miner | Free Gravity Neutralizer | -7/Data Miner | Free Imp. Lightning Gun | -7/Data Miner | Free Nuclear Pulse Array | -7/Data Miner | Free Imp. Thermal Shield | -7/Data Miner | Free EM Disruption Field | -7/Data Miner | Free Lgt. Antimatter Reactor | -7/Data Miner | Free Disruptor Cannon | -7/Data Miner | Free Powered Armor | -6/Factory | Hacked Robot Schematics ------------------ H-66 Slayer | -7/Data Miner | Free H-55 Commando | -7/Data Miner | Free L-41 Fighter | -7/Data Miner | Free R-10 Processor | -7/Data Miner | Free Y-54 Guardian | -7/Data Miner | Free Fabricated ------------ Powered Armor | x2 | -5/Factory Alien Tech Used ----------------- None Achievements -------------- 40k Club Pyromaniac Turtlemind Challenges ------------ None Game ------ Seed MetafieldThrusterWheel Manual? 0 Play Time 05:45:23 Cumulative 131.0 hours Start 2023.03.05 @ 20:07:09 End 2023.03.06 @ 03:08:14 Sessions 3 Manual Loads 0 Difficulty Rogue Special Mode None Game No. 80 Rogue 80 Adventurer 0 Explorer 0 Win Type - Total 1 Types 0/0/1/0/0/0/0/0/0 Lore% 53 Gallery% 67 Achievement% 55 Wizard Run 0 Options --------- ASCII 1 Keyboard 1 Movement Numpad Keybinds 0 Fullscreen 0 Font 16/Terminus Map View 76x50 Tactical HUD 1 Map Filters NONE Filters NONE Steam 1 RUN: abdf5350-80d5-4082-8181-c86fe2448302